fUST/lending_fUST_20250628
["ID","MTS","AMOUNT","RATE_DAILY","PERIOD"]
[368327634,1751121051220,-206.0,0.0002228,2]
[368327635,1751121051229,-151.0,0.000223,6]
[368327636,1751121051238,-259.0,0.00022318,2]
[368327637,1751121051247,-259.0,0.00022339,2]
[368327638,1751121051256,-1500.0,0.0002235,2]
[368327639,1751121051265,-601.22811674,0.0002235,2]
[368327640,1751121051275,-1500.0,0.0002235,2]
[368327641,1751121051284,-201.0,0.0002235,4]
[368327642,1751121051293,-3222.09333918,0.00022383,7]
[368327643,1751121051302,-151.0,0.00022402,5]
[368327644,1751121051312,-1500.0,0.00022403,2]
[368327645,1751121051321,-1800.0,0.00022403,2]
[368327646,1751121051331,-1500.0,0.00022403,2]
[368327647,1751121051339,-1500.0,0.00022403,2]
[368327648,1751121051349,-1500.0,0.00022403,2]
[368327649,1751121051358,-259.0,0.00022434,2]
[368327650,1751121051367,-151.0,0.00022465,7]
[368327651,1751121051376,-151.0,0.00022465,7]
[368327652,1751121051386,-470.80306,0.00022465,7]
[368327653,1751121051395,-470.80306,0.00022465,7]
[368327654,1751121051404,-460.0,0.00022465,2]
[368327655,1751121051414,-460.0,0.00022465,2]
[368327656,1751121051423,-460.0,0.00022465,2]
[368327657,1751121051432,-814.56,0.00022465,2]
[368327658,1751121051442,-460.0,0.00022465,2]
[368327659,1751121051451,-922.31,0.00022465,2]
[368327660,1751121051460,-460.0,0.00022465,2]
[368327661,1751121051469,-566.23,0.00022465,2]
[368327662,1751121051479,-1143.53,0.00022465,2]
[368327663,1751121051488,-460.0,0.00022465,2]
[368327664,1751121051498,-460.0,0.00022465,2]
[368327665,1751121051507,-460.0,0.00022465,2]
[368327666,1751121051516,-915.18,0.00022465,2]
[368327667,1751121051525,-460.0,0.00022465,2]
[368327668,1751121051535,-1185.83,0.00022465,2]
[368327669,1751121051544,-460.0,0.00022465,2]
[368327670,1751121051553,-460.0,0.00022465,2]
[368327671,1751121051562,-615.29,0.00022465,2]
[368327672,1751121051571,-1009.76,0.00022465,2]
[368327673,1751121051580,-1416.99,0.00022465,2]
[368327674,1751121051589,-711.04,0.00022465,2]
[368327675,1751121051598,-460.0,0.00022465,2]
[368327676,1751121051608,-1085.24,0.00022465,2]
[368327677,1751121051617,-460.0,0.00022465,2]
[368327678,1751121051626,-460.0,0.00022465,2]
[368327679,1751121051635,-2000.47,0.00022465,2]
[368327680,1751121051645,-460.0,0.00022465,2]
[368327681,1751121051654,-464.32,0.00022465,2]
[368327682,1751121051663,-1516.03,0.00022465,2]
[368327683,1751121051672,-2420.5,0.00022465,2]
[368327684,1751121051681,-2718.97,0.00022465,2]
[368327685,1751121051691,-907.82,0.00022465,2]
[368327686,1751121051699,-463.02,0.00022465,2]
[368327687,1751121051709,-460.0,0.00022465,2]
[368327688,1751121051718,-460.0,0.00022465,2]
[368327689,1751121051728,-1021.59,0.00022465,2]
[368327690,1751121051737,-765.19,0.00022465,2]
[368327691,1751121051747,-851.31,0.00022465,2]
[368327692,1751121051758,-591.41,0.00022465,2]
[368327693,1751121051767,-460.0,0.00022465,2]
[368327694,1751121051776,-460.0,0.00022465,2]
[368327695,1751121051786,-153.0,0.00022493,2]
[368327696,1751121051797,-153.0,0.00022493,2]
[368327697,1751121051807,-153.0,0.00022493,2]
[368327698,1751121051817,-2000.0,0.000225,2]
[368327699,1751121051827,-2000.0,0.000225,2]
[368327700,1751121051836,-2000.0,0.000225,2]
[368327701,1751121051846,-151.0,0.000225,7]
[368327702,1751121051855,-151.0,0.000225,10]
[368327703,1751121051865,-100599.21,0.000225,2]
[368327704,1751121051874,-1001.263524,0.000225,2]
[368327705,1751121051883,-206.0,0.0002252,2]
[368327706,1751121051892,-151.0,0.00022535,3]
[368327707,1751121051902,-151.0,0.00022535,3]
[368327708,1751121051910,-151.0,0.00022535,3]
[368327709,1751121051920,-151.0,0.00022535,3]
[368327710,1751121051929,-151.0,0.00022535,3]
[368327711,1751121051939,-151.0,0.00022535,3]
[368327712,1751121051948,-151.0,0.00022535,3]
[368327713,1751121051958,-151.0,0.00022535,3]
[368327714,1751121051967,-151.0,0.00022535,3]
[368327715,1751121051976,-151.0,0.00022535,3]
[368327716,1751121051985,-151.0,0.00022535,3]
[368327717,1751121051995,-151.0,0.00022535,3]
[368327718,1751121052004,-151.0,0.00022535,3]
[368327719,1751121052014,-151.0,0.00022535,3]
[368327720,1751121052023,-151.0,0.00022535,3]
[368327721,1751121052033,-151.0,0.00022535,3]
[368327722,1751121052042,-151.0,0.00022535,3]
[368327723,1751121052052,-151.0,0.00022535,3]
[368327724,1751121052065,-151.0,0.00022535,3]
[368327725,1751121052075,-155.24283127,0.00022535,3]
[368327726,1751121052084,-259.0,0.00022536,2]
[368327727,1751121052094,-497492.47297869,0.0002257,2]
[368327728,1751121052304,-460.0,0.00019178,2]
[368327729,1751121052313,-291.96781573,0.0002257,2]
[368327730,1751121052324,-567.87898395,0.0002257,2]
[368327731,1751121052560,-342.74233533,0.00019075,2]
[368327732,1751121052570,-342.81463594,0.00019178,2]
[368327733,1751121052579,-460.0,0.00019452,2]
[368327734,1751121052589,-1023.06,0.00019726,2]
[368327735,1751121052600,-460.0,0.00019726,2]
[368327736,1751121052611,-1023.06,0.0002,2]
[368327737,1751121052622,-460.0,0.0002,2]
[368327738,1751121052632,-1023.06,0.00020273,2]
[368327739,1751121052642,-500.0,0.00020273,2]
[368327740,1751121052654,-1023.06,0.00020547,2]
[368327741,1751121052663,-1023.06,0.00020821,2]
[368327742,1751121052674,-406.0,0.00021933,2]
[368327743,1751121052684,-65092.65596962,0.0002257,2]
[368327744,1751121052693,-206.0,0.0002257,2]
[368327745,1751121052703,-2319.73503736,0.0002257,2]
[368327746,1751121052712,-151.0,0.0002257,5]
[368327747,1751121052722,-3222.09333918,0.0002259,7]
[368327748,1751121052732,-21538.41057442,0.000226,5]
[368327749,1751121052741,-151.0,0.000226,7]
[368327750,1751121052751,-151.0,0.000226,7]
[368327751,1751121052760,-388.151934,0.000226,7]
[368327752,1751121052770,-388.151934,0.000226,7]
[368327753,1751121052780,-12564.78152626,0.000226,3]
[368327754,1751121052789,-213.78848551,0.000226,3]
[368327755,1751121052799,-520.540978,0.00022603,2]
[368327756,1751121052808,-500.0,0.00022636,2]
[368327757,1751121052818,-18875.82641572,0.00022655,3]
[368327758,1751121052827,-259.0,0.00022668,2]
[368327759,1751121052837,-1500.0,0.00022681,2]
[368327760,1751121052846,-1001.64561217,0.00022681,2]
[368327761,1751121052855,-500.0,0.00022681,2]
[368327762,1751121052864,-160.0,0.000227,3]
[368327763,1751121052873,-480.0,0.000227,2]
[368327764,1751121052883,-1078.0,0.00022702,2]
[368327765,1751121052892,-177.0,0.00022721,2]
[368327766,1751121052901,-151.0,0.00022739,7]
[368327767,1751121052911,-460.0,0.00022739,2]
[368327768,1751121052920,-460.0,0.00022739,2]
[368327769,1751121052930,-460.0,0.00022739,2]
[368327770,1751121052939,-460.0,0.00022739,2]
[368327771,1751121052949,-922.31,0.00022739,2]
[368327772,1751121052958,-460.0,0.00022739,2]
[368327773,1751121052967,-566.23,0.00022739,2]
[368327774,1751121052977,-1143.53,0.00022739,2]
[368327775,1751121052987,-460.0,0.00022739,2]
[368327776,1751121052996,-432.51015836,0.00022739,2]
[368327777,1751121053013,-460.0,0.00019178,2]
[368327778,1751121053023,-27.48984164,0.00022739,2]
[368327779,1751121053032,-460.0,0.00022739,2]
[368327780,1751121053041,-322.43399289,0.00022739,2]
[368327781,1751121053205,-460.0,0.00019178,2]
[368327782,1751121053214,-460.0,0.00019178,2]
[368327783,1751121053224,-460.0,0.00019452,2]
[368327784,1751121053233,-460.0,0.00019452,2]
[368327785,1751121053243,-460.0,0.00019452,2]
[368327786,1751121053252,-460.0,0.00019726,2]
[368327787,1751121053261,-342.74233528,0.00019944,2]
[368327788,1751121053270,-15630.38405292,0.0001999,2]
[368327789,1751121053281,-3758.45108075,0.0001999,2]
[368327790,1751121053300,-10168.55647209,0.0001999,2]
[368327791,1751121053312,-1138.81636007,0.0001999,2]
[368327792,1751121135930,160.0,0.000208,40]
[368327793,1751121303156,225.0,0.00017,2]
[368327794,1751121371081,261.419457,0.00013699,2]
[368327797,1751121712031,278.95,0.00025249,120]
[368327798,1751121853746,229.1752038,0.00018015,2]
[368327803,1751122045086,-300.0,0.00018173,2]
[368327804,1751122045109,-349.33144897,0.00018174,2]
[368327839,1751122231712,-300.0,0.00018173,2]
[368327842,1751122231723,-80.15004433,0.00018174,2]
[368327850,1751122231796,-1161.1420984,0.00018174,2]
[368327936,1751122237711,-908.34935448,0.00018174,2]
[368327937,1751122237723,-528.78757581,0.00018174,2]
[368327938,1751122237735,-340.47030623,0.00018174,2]
[368327939,1751122237749,-3800.05822073,0.00018174,2]
[368327940,1751122237816,-17731.71095105,0.00018174,2]
[368327941,1751122237826,-3442.1788632,0.00018177,2]
[368327942,1751122237836,-202.786007,0.0001824,2]
[368327943,1751122237846,-218.500148,0.00018603,2]
[368327944,1751122237856,-282.52789141,0.00019074,2]
[368327945,1751122237865,-160.0,0.00019161,2]
[368327946,1751122237876,-500.0,0.00019173,2]
[368327947,1751122237886,-500.0,0.00019173,2]
[368327948,1751122237895,-500.0,0.00019173,2]
[368327949,1751122237904,-500.0,0.00019173,2]
[368327950,1751122237913,-500.0,0.00019173,2]
[368327951,1751122237922,-500.0,0.00019173,2]
[368327952,1751122237932,-500.0,0.00019173,2]
[368327953,1751122237941,-500.0,0.00019173,2]
[368327954,1751122237951,-500.0,0.00019173,2]
[368327955,1751122237960,-500.0,0.00019173,2]
[368327956,1751122237969,-500.0,0.00019173,2]
[368327957,1751122237978,-500.0,0.00019173,2]
[368327958,1751122237988,-500.0,0.00019173,2]
[368327959,1751122238001,-500.0,0.00019173,2]
[368327960,1751122238011,-500.0,0.00019173,2]
[368327961,1751122238021,-500.0,0.00019173,2]
[368327962,1751122238030,-562.81875762,0.00019173,2]
[368327963,1751122238040,-500.0,0.00019173,2]
[368327964,1751122238050,-500.0,0.00019173,2]
[368327965,1751122238059,-460.0,0.00019178,2]
[368327966,1751122238069,-460.0,0.00019178,2]
[368327967,1751122238079,-460.0,0.00019178,2]
[368327968,1751122238088,-508.90429051,0.00019178,2]
[368327969,1751122238097,-461.78228676,0.00019178,2]
[368327970,1751122238107,-460.0,0.00019178,2]
[368327971,1751122238117,-460.0,0.00019178,2]
[368327972,1751122238126,-460.0,0.00019178,2]
[368327973,1751122238136,-460.0,0.00019178,2]
[368327974,1751122238146,-369.62724804,0.00019178,2]
[368327975,1751122238155,-547.54839612,0.00019178,2]
[368327976,1751122238165,-460.0,0.00019178,2]
[368327977,1751122238174,-460.0,0.00019178,2]
[368327978,1751122238184,-460.0,0.00019178,2]
[368327979,1751122238193,-453.21197749,0.00019178,2]
[368327980,1751122238203,-460.0,0.00019178,2]
[368327981,1751122238212,-460.0,0.00019178,2]
[368327982,1751122238222,-460.0,0.00019178,2]
[368327983,1751122238231,-460.0,0.00019178,2]
[368327984,1751122238241,-460.0,0.00019178,2]
[368327985,1751122238250,-460.0,0.00019178,2]
[368327986,1751122238259,-460.0,0.00019178,2]
[368327987,1751122238269,-460.0,0.00019178,2]
[368327988,1751122238279,-460.0,0.00019178,2]
[368327989,1751122238292,-211.57912071,0.00019178,2]
[368327990,1751122238304,-460.0,0.00019178,2]
[368327991,1751122238314,-460.0,0.00019178,2]
[368327992,1751122238324,-460.0,0.00019178,2]
[368327993,1751122238335,-460.0,0.00019178,2]
[368327994,1751122238351,-460.0,0.00019178,2]
[368327995,1751122238362,-460.0,0.00019178,2]
[368327996,1751122238371,-575.0,0.00019178,2]
[368327997,1751122238380,-460.0,0.00019178,2]
[368327998,1751122238390,-460.0,0.00019178,2]
[368327999,1751122238399,-460.0,0.00019178,2]
[368328000,1751122238408,-460.0,0.00019178,2]
[368328001,1751122238417,-460.0,0.00019178,2]
[368328002,1751122238427,-460.0,0.00019178,2]
[368328003,1751122238436,-460.0,0.00019178,2]
[368328004,1751122238445,-460.0,0.00019178,2]
[368328005,1751122238454,-460.0,0.00019178,2]
[368328006,1751122238464,-460.0,0.00019178,2]
[368328007,1751122238473,-460.0,0.00019178,2]
[368328008,1751122238483,-460.0,0.00019178,2]
[368328009,1751122238493,-460.0,0.00019178,2]
[368328010,1751122238502,-460.0,0.00019178,2]
[368328011,1751122238512,-460.0,0.00019178,2]
[368328012,1751122238521,-460.0,0.00019178,2]
[368328013,1751122238531,-460.0,0.00019178,2]
[368328014,1751122238540,-460.0,0.00019178,2]
[368328015,1751122238550,-460.0,0.00019178,2]
[368328016,1751122238559,-460.0,0.00019178,2]
[368328017,1751122238568,-460.0,0.00019178,2]
[368328018,1751122238577,-218.80959887,0.00019178,2]
[368328019,1751122238586,-460.0,0.00019178,2]
[368328020,1751122238596,-460.0,0.00019178,2]
[368328021,1751122238605,-460.0,0.00019178,2]
[368328022,1751122238614,-460.0,0.00019178,2]
[368328023,1751122238624,-460.0,0.00019178,2]
[368328024,1751122238633,-460.0,0.00019178,2]
[368328025,1751122238642,-460.0,0.00019178,2]
[368328026,1751122238651,-460.0,0.00019178,2]
[368328027,1751122238660,-460.0,0.00019178,2]
[368328028,1751122238670,-460.0,0.00019178,2]
[368328029,1751122238679,-460.0,0.00019178,2]
[368328030,1751122238688,-460.0,0.00019178,2]
[368328031,1751122238697,-557.34038684,0.00019178,2]
[368328032,1751122238706,-460.0,0.00019178,2]
[368328033,1751122238716,-460.0,0.00019178,2]
[368328034,1751122238725,-460.0,0.00019178,2]
[368328035,1751122238734,-460.0,0.00019178,2]
[368328036,1751122238744,-460.0,0.00019178,2]
[368328037,1751122238753,-460.0,0.00019178,2]
[368328038,1751122238762,-460.0,0.00019178,2]
[368328039,1751122238771,-460.0,0.00019178,2]
[368328040,1751122238780,-460.0,0.00019178,2]
[368328041,1751122238789,-460.0,0.00019178,2]
[368328042,1751122238799,-460.0,0.00019178,2]
[368328043,1751122238812,-460.0,0.00019178,2]
[368328044,1751122238821,-460.0,0.00019178,2]
[368328045,1751122238831,-2083.33,0.00019178,2]
[368328046,1751122238841,-460.0,0.00019178,2]
[368328047,1751122238850,-460.0,0.00019178,2]
[368328048,1751122238859,-460.0,0.00019178,2]
[368328049,1751122238868,-460.0,0.00019178,2]
[368328050,1751122238878,-460.0,0.00019178,2]
[368328051,1751122238889,-460.0,0.00019178,2]
[368328052,1751122238899,-460.0,0.00019178,2]
[368328053,1751122238911,-776.29,0.00019178,2]
[368328054,1751122238920,-460.0,0.00019178,2]
[368328055,1751122238929,-460.0,0.00019178,2]
[368328056,1751122238939,-447.96903851,0.00019178,2]
[368328057,1751122238948,-460.0,0.00019178,2]
[368328058,1751122238957,-460.0,0.00019178,2]
[368328059,1751122238966,-460.0,0.00019178,2]
[368328060,1751122238976,-460.0,0.00019178,2]
[368328061,1751122238985,-460.0,0.00019178,2]
[368328062,1751122238994,-460.0,0.00019178,2]
[368328063,1751122239003,-460.0,0.00019178,2]
[368328064,1751122239013,-460.0,0.00019178,2]
[368328065,1751122239022,-460.0,0.00019178,2]
[368328066,1751122239032,-460.0,0.00019178,2]
[368328067,1751122239041,-460.0,0.00019178,2]
[368328068,1751122239050,-445.49132764,0.00019178,2]
[368328069,1751122239060,-460.0,0.00019178,2]
[368328070,1751122239069,-460.0,0.00019178,2]
[368328071,1751122239079,-460.0,0.00019178,2]
[368328072,1751122239088,-460.0,0.00019178,2]
[368328073,1751122239098,-460.0,0.00019178,2]
[368328074,1751122239107,-460.0,0.00019178,2]
[368328075,1751122239116,-1007.95,0.00019178,2]
[368328076,1751122239125,-460.0,0.00019178,2]
[368328077,1751122239135,-460.0,0.00019178,2]
[368328078,1751122239144,-460.0,0.00019178,2]
[368328079,1751122239154,-460.0,0.00019178,2]
[368328080,1751122239163,-460.0,0.00019178,2]
[368328081,1751122239172,-460.0,0.00019178,2]
[368328082,1751122239181,-460.0,0.00019178,2]
[368328083,1751122239191,-544.11,0.00019178,2]
[368328084,1751122239200,-460.0,0.00019178,2]
[368328085,1751122239209,-460.0,0.00019178,2]
[368328086,1751122239218,-460.0,0.00019178,2]
[368328087,1751122239227,-460.0,0.00019178,2]
[368328088,1751122239236,-460.0,0.00019178,2]
[368328089,1751122239247,-749.17,0.00019178,2]
[368328090,1751122239256,-460.0,0.00019178,2]
[368328091,1751122239266,-500.0,0.00019178,2]
[368328092,1751122239276,-460.0,0.00019178,2]
[368328093,1751122239285,-460.0,0.00019178,2]
[368328094,1751122239295,-580.15650377,0.00019178,2]
[368328095,1751122239304,-460.0,0.00019178,2]
[368328096,1751122239315,-460.0,0.00019178,2]
[368328097,1751122239324,-460.0,0.00019178,2]
[368328098,1751122239333,-460.0,0.00019178,2]
[368328099,1751122239343,-460.0,0.00019178,2]
[368328100,1751122239352,-460.0,0.00019178,2]
[368328101,1751122239361,-1000.08,0.00019178,2]
[368328102,1751122239370,-460.0,0.00019178,2]
[368328103,1751122239380,-460.0,0.00019178,2]
[368328104,1751122239389,-460.0,0.00019178,2]
[368328105,1751122239398,-460.0,0.00019178,2]
[368328106,1751122239408,-460.0,0.00019178,2]
[368328107,1751122239417,-460.0,0.00019178,2]
[368328108,1751122239426,-460.0,0.00019178,2]
[368328109,1751122239435,-460.0,0.00019178,2]
[368328110,1751122239445,-460.0,0.00019178,2]
[368328111,1751122239454,-245.9012214,0.00019178,2]
[368328112,1751122239464,-460.0,0.00019178,2]
[368328113,1751122239473,-460.0,0.00019178,2]
[368328114,1751122239482,-460.0,0.00019178,2]
[368328115,1751122239492,-304.56734399,0.00019178,2]
[368328116,1751122239501,-460.0,0.00019178,2]
[368328117,1751122239511,-410.96247218,0.00019178,2]
[368328118,1751122239520,-500.0,0.00019178,2]
[368328119,1751122239529,-460.0,0.00019178,2]
[368328120,1751122239538,-460.0,0.00019178,2]
[368328121,1751122239547,-500.0,0.00019178,2]
[368328122,1751122239557,-500.0,0.00019178,2]
[368328123,1751122239566,-1316.84,0.00019178,2]
[368328124,1751122239575,-460.0,0.00019178,2]
[368328125,1751122239584,-460.0,0.00019178,2]
[368328126,1751122239594,-1341.69,0.00019178,2]
[368328127,1751122239603,-460.0,0.00019178,2]
[368328128,1751122239612,-460.0,0.00019178,2]
[368328129,1751122239622,-460.0,0.00019178,2]
[368328130,1751122239632,-460.0,0.00019178,2]
[368328131,1751122239641,-460.0,0.00019178,2]
[368328132,1751122239651,-432.40168516,0.00019178,2]
[368328133,1751122239660,-387.03065936,0.00019178,2]
[368328134,1751122239670,-460.0,0.00019178,2]
[368328135,1751122239679,-460.0,0.00019178,2]
[368328136,1751122239688,-460.0,0.00019178,2]
[368328137,1751122239698,-460.0,0.00019178,2]
[368328138,1751122239707,-460.0,0.00019178,2]
[368328139,1751122239716,-1929.75,0.00019178,2]
[368328140,1751122239725,-460.0,0.00019178,2]
[368328141,1751122239734,-460.0,0.00019178,2]
[368328142,1751122239744,-460.0,0.00019178,2]
[368328143,1751122239753,-460.0,0.00019178,2]
[368328144,1751122239763,-460.0,0.00019178,2]
[368328145,1751122239772,-605.01015284,0.00019178,2]
[368328146,1751122239781,-460.0,0.00019178,2]
[368328147,1751122239791,-460.0,0.00019178,2]
[368328148,1751122239800,-379.6644156,0.00019178,2]
[368328149,1751122239815,-460.0,0.00019178,2]
[368328150,1751122239824,-460.0,0.00019178,2]
[368328151,1751122239833,-460.0,0.00019178,2]
[368328152,1751122239842,-460.0,0.00019178,2]
[368328153,1751122239852,-460.0,0.00019178,2]
[368328154,1751122239862,-460.0,0.00019178,2]
[368328155,1751122239871,-460.0,0.00019178,2]
[368328156,1751122239880,-593.48428246,0.00019178,2]
[368328157,1751122239890,-939.8,0.00019178,2]
[368328158,1751122239899,-460.0,0.00019178,2]
[368328159,1751122239908,-460.0,0.00019178,2]
[368328160,1751122239917,-428.59211984,0.00019178,2]
[368328161,1751122239927,-460.0,0.00019178,2]
[368328162,1751122239936,-460.0,0.00019178,2]
[368328163,1751122239946,-460.0,0.00019178,2]
[368328164,1751122239955,-2621.86,0.00019178,2]
[368328165,1751122239964,-918.94,0.00019178,2]
[368328166,1751122239973,-460.0,0.00019178,2]
[368328167,1751122239982,-460.0,0.00019178,2]
[368328168,1751122239991,-460.0,0.00019178,2]
[368328169,1751122240001,-460.0,0.00019178,2]
[368328171,1751122240010,-570.28,0.00019178,2]
[368328173,1751122240020,-460.0,0.00019178,2]
[368328174,1751122240029,-724.67,0.00019178,2]
[368328175,1751122240038,-460.0,0.00019178,2]
[368328176,1751122240048,-460.0,0.00019178,2]
[368328177,1751122240057,-460.0,0.00019178,2]
[368328178,1751122240066,-701.42,0.00019178,2]
[368328179,1751122240076,-460.0,0.00019178,2]
[368328180,1751122240085,-460.0,0.00019178,2]
[368328181,1751122240095,-460.0,0.00019178,2]
[368328182,1751122240105,-460.0,0.00019178,2]
[368328183,1751122240114,-460.0,0.00019178,2]
[368328184,1751122240124,-460.0,0.00019178,2]
[368328185,1751122240133,-460.0,0.00019178,2]
[368328186,1751122240143,-460.0,0.00019178,2]
[368328187,1751122240152,-460.0,0.00019178,2]
[368328188,1751122240161,-460.0,0.00019178,2]
[368328189,1751122240171,-460.0,0.00019178,2]
[368328190,1751122240180,-460.0,0.00019178,2]
[368328191,1751122240189,-460.0,0.00019178,2]
[368328192,1751122240199,-430.55966655,0.00019178,2]
[368328193,1751122240209,-460.0,0.00019178,2]
[368328194,1751122240218,-460.0,0.00019178,2]
[368328195,1751122240228,-410.95820479,0.00019178,2]
[368328196,1751122240237,-460.0,0.00019178,2]
[368328197,1751122240247,-460.0,0.00019178,2]
[368328198,1751122240255,-312.324586,0.00019178,2]
[368328199,1751122240265,-500.0,0.00019178,2]
[368328200,1751122240274,-69303.79203417,0.00019329,2]
[368328201,1751122240283,-1899.01202236,0.00019352,2]
[368328202,1751122240293,-460.0,0.00019452,2]
[368328203,1751122240302,-460.0,0.00019452,2]
[368328204,1751122240311,-580.0,0.00019452,2]
[368328205,1751122240320,-460.0,0.00019452,2]
[368328206,1751122240330,-460.0,0.00019452,2]
[368328207,1751122240339,-460.0,0.00019452,2]
[368328208,1751122240348,-460.0,0.00019452,2]
[368328209,1751122240357,-460.0,0.00019452,2]
[368328210,1751122240367,-460.0,0.00019452,2]
[368328211,1751122240376,-460.0,0.00019452,2]
[368328212,1751122240385,-460.0,0.00019452,2]
[368328213,1751122240395,-460.0,0.00019452,2]
[368328214,1751122240404,-460.0,0.00019452,2]
[368328215,1751122240413,-460.0,0.00019452,2]
[368328216,1751122240422,-460.0,0.00019452,2]
[368328217,1751122240431,-233.35,0.00019452,2]
[368328218,1751122240568,-460.0,0.00019452,2]
[368328219,1751122240578,-461.36235608,0.00019452,2]
[368328220,1751122240588,-460.0,0.00019452,2]
[368328221,1751122240597,-460.0,0.00019452,2]
[368328222,1751122240607,-460.0,0.00019452,2]
[368328223,1751122240616,-460.0,0.00019452,2]
[368328224,1751122240625,-460.0,0.00019452,2]
[368328225,1751122240634,-460.0,0.00019452,2]
[368328226,1751122240643,-568.84709465,0.00019452,2]
[368328227,1751122240652,-460.0,0.00019452,2]
[368328228,1751122240662,-460.0,0.00019452,2]
[368328229,1751122240671,-460.0,0.00019452,2]
[368328230,1751122240681,-460.0,0.00019452,2]
[368328231,1751122240690,-460.0,0.00019452,2]
[368328232,1751122240699,-460.0,0.00019452,2]
[368328233,1751122240708,-460.0,0.00019452,2]
[368328234,1751122240717,-460.0,0.00019452,2]
[368328235,1751122240726,-410.87111296,0.00019452,2]
[368328236,1751122240736,-460.0,0.00019452,2]
[368328237,1751122240745,-285.68,0.00019452,2]
[368328238,1751122240754,-460.0,0.00019452,2]
[368328239,1751122240763,-500.0,0.00019452,2]
[368328240,1751122240772,-265.67870005,0.00019452,2]
[368328241,1751122240781,-460.0,0.00019452,2]
[368328242,1751122240790,-460.0,0.00019452,2]
[368328243,1751122240801,-460.0,0.00019452,2]
[368328244,1751122240813,-486.33807008,0.00019452,2]
[368328245,1751122240822,-460.0,0.00019452,2]
[368328246,1751122240832,-460.0,0.00019452,2]
[368328247,1751122240841,-460.0,0.00019452,2]
[368328248,1751122240851,-460.0,0.00019452,2]
[368328249,1751122240860,-460.0,0.00019452,2]
[368328250,1751122240870,-460.0,0.00019452,2]
[368328251,1751122240879,-460.0,0.00019452,2]
[368328252,1751122240889,-460.0,0.00019452,2]
[368328253,1751122240899,-460.0,0.00019452,2]
[368328254,1751122240908,-460.0,0.00019452,2]
[368328255,1751122240917,-460.0,0.00019452,2]
[368328256,1751122240926,-460.0,0.00019452,2]
[368328257,1751122240936,-460.0,0.00019452,2]
[368328258,1751122240945,-460.0,0.00019452,2]
[368328259,1751122240954,-2083.33,0.00019452,2]
[368328260,1751122240963,-460.0,0.00019452,2]
[368328261,1751122240972,-510.41653423,0.00019452,2]
[368328262,1751122240981,-460.0,0.00019452,2]
[368328263,1751122240991,-460.0,0.00019452,2]
[368328264,1751122241001,-776.29,0.00019452,2]
[368328265,1751122241010,-460.0,0.00019452,2]
[368328266,1751122241019,-460.0,0.00019452,2]
[368328267,1751122241030,-460.0,0.00019452,2]
[368328268,1751122241039,-230.49719488,0.00019452,2]
[368328269,1751122241048,-460.0,0.00019452,2]